bitfinex-derivatives/quotes_SOLF0:USTF0_20250523
["timestamp","ask_amount","ask_price","bid_price","bid_amount"]
[1748028611929,114.42,179.62,179.5,114.42]
[1748028612317,5.567,179.6,179.5,114.42]
[1748028612520,0.03933888,179.57,179.53,0.03826137]
[1748028613131,0.03933888,179.57,179.56,5.568]
[1748028613926,116.3797,179.66,179.6,5.5665]
[1748028614124,5.5658,179.64,179.6,5.5665]
[1748028615018,5.60859999,179.64,179.6,5.60932123]
[1748028615219,0.04279999,179.64,179.6,0.04282123]
[1748028617128,5.5664,179.62,179.6,0.04282123]
[1748028617630,0.04279999,179.64,179.6,0.04282123]
[1748028620330,0.04279999,179.64,179.63,5.5659]
[1748028620526,0.04279999,179.64,179.6,0.04282123]
[1748028621033,0.04279999,179.64,179.62,5.566]
[1748028621231,0.04279999,179.64,179.6,0.04282123]
[1748028623137,0.04279999,179.64,179.63,5.5659]
[1748028624133,0.04279999,179.64,179.62,5.5661]
[1748028624437,0.04279999,179.64,179.61,105.8]
[1748028625239,0.04279999,179.64,179.62,5.5662]
[1748028626039,0.04279999,179.64,179.61,105.8]
[1748028626539,5.60859999,179.64,179.61,111.3665]
[1748028626838,0.04279999,179.64,179.61,105.8]
[1748028627938,0.04279999,179.64,179.62,5.5659]
[1748028628943,0.04279999,179.64,179.63,5.5659]
[1748028631143,0.04279999,179.64,179.62,5.566]
[1748028632542,0.04279999,179.64,179.6,0.04282123]
[1748028634040,5.90405037,179.63,179.54,5.5684]
[1748028634249,114.24,179.62,179.54,5.5684]
[1748028634642,5.568,179.57,179.54,5.5684]
[1748028634839,5.568,179.57,179.52,220.02]
[1748028635039,0.04002357,179.56,179.53,0.03608663]
[1748028635950,0.04002357,179.56,179.46,10.34691472]
[1748028635951,5.90405037,179.54,179.46,10.34691472]
[1748028636138,114.24,179.53,179.46,10.34691472]
[1748028636835,0.04109204,179.52,179.49,0.03602144]
[1748028638042,5.5699,179.5,179.49,0.03602144]
[1748028640737,5.5699,179.5,179.49,2.144e-05]
[1748028644241,5.5697,179.51,179.49,2.144e-05]
[1748028644444,0.04109204,179.52,179.49,2.144e-05]
[1748028644846,0.04109204,179.52,179.49,5.57002144]
[1748028645346,5.61039204,179.52,179.49,5.57002144]
[1748028645943,5.61039204,179.52,179.49,2.144e-05]
[1748028646246,0.04109204,179.52,179.49,2.144e-05]
[1748028646945,5.61039204,179.52,179.49,5.56992144]
[1748028647247,0.04109204,179.52,179.49,5.56992144]
[1748028648145,5.61039204,179.52,179.49,5.56992144]
[1748028648447,5.61039204,179.52,179.49,2.144e-05]
[1748028648448,0.04109204,179.52,179.49,2.144e-05]
[1748028648636,5.5699,179.5,179.49,2.144e-05]
[1748028654355,5.90405037,179.51,179.42,1.9208]
[1748028654555,114.32,179.5,179.42,1.9208]
[1748028654753,114.32,179.5,179.43,5.5719]
[1748028655051,114.32,179.5,179.42,1.9208]
[1748028655555,0.03713558,179.48,179.44,0.03972017]
[1748028657157,5.5714,179.45,179.44,0.03972017]
[1748028657649,0.03713558,179.48,179.44,0.03972017]
[1748028659856,5.5714,179.45,179.44,0.03972017]
[1748028660060,0.03713558,179.48,179.44,0.03972017]
[1748028660950,0.03713558,179.48,179.47,5.5708]
[1748028669159,3.558e-05,179.48,179.47,5.5708]
[1748028669462,3.558e-05,179.48,179.46,7.5408]
[1748028670164,3.558e-05,179.48,179.45,1.9339]
[1748028671372,3.558e-05,179.48,179.44,0.03972017]
[1748028672663,5.5714,179.45,179.44,0.03972017]
[1748028673858,3.558e-05,179.48,179.44,0.03972017]
[1748028674164,3.558e-05,179.48,179.44,5.61142017]
[1748028674363,3.558e-05,179.48,179.44,0.03972017]
[1748028674765,3.558e-05,179.48,179.45,5.5712]
[1748028675365,5.57063558,179.48,179.45,5.5712]
[1748028675768,3.558e-05,179.48,179.44,5.61132017]
[1748028676268,3.558e-05,179.48,179.44,0.03972017]
[1748028677667,5.5714,179.45,179.44,0.03972017]
[1748028677969,3.558e-05,179.48,179.44,0.03972017]
[1748028678273,5.5711,179.46,179.44,0.03972017]
[1748028678474,3.558e-05,179.48,179.44,0.03972017]
[1748028678884,5.5714,179.45,179.44,0.03972017]
[1748028679181,119.8314,179.45,179.44,0.03972017]
[1748028680285,119.8314,179.45,179.44,2.017e-05]
[1748028681076,119.84,179.45,179.32,6.85746097]
[1748028681384,5.90405037,179.43,179.33,1.8343]
[1748028681589,5.5742,179.37,179.33,7.4092]
[1748028681778,114.26,179.4,179.33,1.8343]
[1748028681977,0.03517509,179.38,179.35,0.03750218]
[1748028682182,5.5744,179.36,179.35,0.03750218]
[1748028682378,0.03517509,179.38,179.35,0.03750218]
[1748028682684,5.60887509,179.38,179.35,0.03750218]
[1748028683078,0.03517509,179.38,179.35,0.03750218]
[1748028685579,0.03517509,179.38,179.37,5.5739]
[1748028685782,114.28,179.44,179.35,0.03750218]
[1748028685982,114.28,179.44,179.34,114.28]
[1748028686386,114.28,179.44,179.35,105.92]
[1748028686884,0.03859348,179.41,179.38,0.03915728]
[1748028687289,0.03859348,179.41,179.4,5.5728]
[1748028687486,515.54,179.48,179.38,0.03915728]
[1748028687691,515.54,179.48,179.38,161.03915728]
[1748028687989,5.571,179.47,179.39,1.854]
[1748028688384,0.04028671,179.45,179.41,0.03814737]
[1748028689079,114.28,179.53,179.42,114.28]
[1748028689279,119.8491,179.53,179.43,105.92]
[1748028689487,13.78162271,179.56,179.52,5.5693]
[1748028689683,114.28,179.57,179.52,5.5693]
[1748028689888,0.03938776,179.56,179.53,0.04229538]
[1748028690385,5.60758776,179.56,179.53,0.04229538]
[1748028690794,0.03938776,179.56,179.53,0.04229538]
[1748028691393,0.03938776,179.56,179.55,5.5683]
[1748028691581,114.22,179.61,179.53,0.04229538]
[1748028691887,114.2,179.65,179.54,114.2]
[1748028692190,114.2,179.65,179.55,1.9684]
[1748028692691,5.5666,179.61,179.58,0.04018894]
[1748028692885,0.03992048,179.62,179.58,0.04018894]
[1748028693777,5.5671,179.59,179.58,0.04018894]
[1748028695290,114.2,179.6,179.58,0.04018894]
[1748028696099,119.767,179.6,179.58,0.04018894]
[1748028696792,5.5671,179.59,179.58,0.04018894]
[1748028703993,114.2,179.6,179.58,0.04018894]
[1748028703994,119.7669,179.6,179.58,0.04018894]
[1748028705391,114.2,179.6,179.58,0.04018894]
[1748028705898,119.767,179.6,179.58,0.04018894]
[1748028706099,114.2,179.6,179.58,0.04018894]
[1748028706701,5.5671,179.59,179.58,0.04018894]
[1748028709203,119.7669,179.6,179.58,0.04018894]
[1748028709499,114.2,179.6,179.58,0.04018894]
[1748028709801,5.60632048,179.62,179.58,0.04018894]
[1748028710102,5.60632048,179.62,179.58,5.60738894]
[1748028710505,5.5666,179.61,179.58,0.04018894]
[1748028711596,5.5671,179.59,179.58,0.04018894]
[1748028712202,5.5669,179.6,179.58,0.04018894]
[1748028712394,0.03992048,179.62,179.58,0.04018894]
[1748028713595,0.03992048,179.62,179.61,5.5665]
[1748028715105,114.12,179.7,179.65,5.565]
[1748028715402,114.12,179.7,179.6,114.12]
[1748028715992,114.12,179.7,179.63,0.04194427]
[1748028716506,5.5641,179.69,179.65,5.5652]
[1748028717401,114.12,179.7,179.65,5.5652]
[1748028717402,5.5644,179.68,179.65,5.5652]
[1748028718105,5.5647,179.67,179.64,5.5654]
[1748028718404,5.5647,179.67,179.63,0.04194427]
[1748028718702,5.5647,179.67,179.64,5.5653]
[1748028719909,5.5644,179.68,179.65,5.5652]
[1748028720103,114.12,179.7,179.63,0.04194427]
[1748028720302,114.12,179.7,179.67,5.5646]
[1748028720497,114.12,179.7,179.67,5.60329459]
[1748028720702,5.5639,179.7,179.67,0.03869459]
[1748028720902,114.1,179.74,179.67,0.03869459]
[1748028721805,5.5643,179.68,179.67,0.03869459]
[1748028722502,5.5665,179.62,179.58,105.78]
[1748028722701,114.06,179.65,179.56,3.7804]
[1748028723106,114.06,179.65,179.6,5.5666]
[1748028723407,114.06,179.65,179.56,3.7804]
[1748028723605,5.60297118,179.62,179.59,5.6066613]
[1748028724204,0.03677118,179.62,179.59,0.0397613]
[1748028724899,0.03677118,179.62,179.6,5.5668]
[1748028725101,0.03677118,179.62,179.59,0.0397613]
[1748028725610,0.03677118,179.62,179.6,5.5667]
[1748028726111,0.03677118,179.62,179.61,5.5665]
[1748028729313,0.03677118,179.62,179.59,0.0397613]
[1748028730201,5.5668,179.6,179.59,0.0397613]
[1748028731313,5.5666,179.61,179.59,0.0397613]
[1748028731915,5.5668,179.6,179.59,0.0397613]
[1748028732721,5.569,179.54,179.48,162.96]
[1748028733013,114.06,179.6,179.48,162.96]
[1748028733213,5.5682,179.56,179.53,5.5688]
[1748028733410,114.08,179.56,179.47,1.8689]
[1748028733810,0.0421435,179.54,179.51,0.04283268]
[1748028735019,0.0421435,179.54,179.51,1.86323268]
[1748028735312,0.0421435,179.54,179.53,5.569]
[1748028737920,0.0421435,179.54,179.53,10.58449778]
[1748028739622,0.0421435,179.54,179.53,5.569]
[1748028741222,0.0421435,179.54,179.52,5.5692]
[1748028741415,0.0421435,179.54,179.51,107.66323268]
[1748028741616,0.0421435,179.54,179.51,105.84283268]
[1748028741813,0.0421435,179.54,179.53,5.569]
[1748028747126,114.08,179.6,179.58,5.5673]
[1748028747329,114.1,179.64,179.56,105.82]
[1748028747528,114.1,179.64,179.6,5.5665]
[1748028748029,114.14285768,179.64,179.62,5.5659]
[1748028748227,0.04285768,179.64,179.6,0.0384207]
[1748028748529,114.1,179.63,179.53,5.569]
[1748028748732,121.8984768,179.63,179.53,5.569]
[1748028749029,5.5677,179.58,179.54,5.5687]
[1748028749528,114.1,179.59,179.54,5.5687]
[1748028749737,0.04167918,179.58,179.54,0.0373491]
[1748028751132,5.5683,179.56,179.54,0.0373491]
[1748028752026,5.5684,179.55,179.54,0.0373491]
[1748028757635,5.5684,179.55,179.44,111.01441454]
[1748028757636,5.5702,179.5,179.44,111.01441454]
[1748028757829,5.5702,179.5,179.47,5.5707]
[1748028758029,5.5702,179.5,179.44,111.01441454]
[1748028758030,5.5695,179.52,179.44,111.01441454]
[1748028758231,114.1,179.55,179.44,111.01441454]
[1748028758433,5.569,179.53,179.48,0.04209517]
[1748028758637,0.04194204,179.51,179.48,0.04209517]
[1748028759841,5.5702,179.5,179.48,0.04209517]
[1748028760241,114.14194204,179.51,179.48,0.04209517]
[1748028760541,5.5699,179.5,179.48,0.04209517]
[1748028761541,119.71164204,179.51,179.48,0.04209517]
[1748028762544,119.71164204,179.51,179.48,5.61259517]
[1748028762930,114.14194204,179.51,179.48,0.04209517]
[1748028763334,114.14194204,179.51,179.49,5.57]
[1748028763540,114.14194204,179.51,179.48,0.04209517]
[1748028764044,114.14194204,179.51,179.49,5.5702]
[1748028765445,114.14194204,179.51,179.5,5.5699]
[1748028765944,0.04194204,179.51,179.5,5.5699]
[1748028769538,0.04194204,179.51,179.48,0.04209517]
[1748028769739,5.5699,179.5,179.48,0.04209517]
[1748028770048,5.5699,179.5,179.48,5.61259517]
[1748028770456,5.61164204,179.51,179.48,5.61259517]
[1748028770945,0.04194204,179.51,179.49,5.5702]
[1748028771854,0.04194204,179.51,179.5,5.5699]
[1748028772143,0.04194204,179.51,179.48,0.04209517]
[1748028772354,5.61154204,179.51,179.48,0.04209517]
[1748028772658,5.61154204,179.51,179.48,5.61249517]
[1748028772951,0.04194204,179.51,179.48,0.04209517]
[1748028773255,0.04194204,179.51,179.49,5.5702]
[1748028773550,114.16194204,179.51,179.48,0.04209517]
[1748028773941,5.5702,179.49,179.48,0.04209517]
[1748028774140,114.16194204,179.51,179.42,5.19441454]
[1748028774348,5.5718,179.45,179.42,5.19441454]
[1748028774551,114.12,179.51,179.42,5.19441454]
[1748028774949,114.12,179.51,179.4,1.9123]
[1748028775150,0.04285969,179.47,179.44,0.03760707]
[1748028775753,5.5717,179.45,179.44,0.03760707]
[1748028780360,5.5712,179.46,179.44,0.03760707]
[1748028780657,114.18285969,179.47,179.44,0.03760707]
[1748028780858,5.5715,179.45,179.44,0.03760707]
[1748028781959,5.5724,179.42,179.41,5.01568889]
[1748028782155,114.14,179.43,179.36,5.19441454]
[1748028782355,114.12,179.42,179.36,5.19441454]
[1748028782650,5.5729,179.41,179.36,5.19441454]
[1748028782858,114.12,179.42,179.36,5.19441454]
[1748028783154,0.04170241,179.41,179.37,0.04231033]
[1748028783355,0.04262924,179.41,179.4,5.573]
[1748028784658,114.12,179.46,179.37,3.99799355]
[1748028784659,114.12,179.46,179.45,5.5715]
[1748028785057,114.14,179.5,179.47,5.5707]
[1748028785362,114.14,179.5,179.4,1.8474]
[1748028785563,0.03763918,179.47,179.43,0.04042631]
[1748028785763,0.03763918,179.47,179.46,5.5711]
[1748028794772,401.2,179.53,179.51,5.5694]
[1748028794965,2.0102,179.57,179.45,162.8736]
[1748028795267,114.12,179.55,179.45,162.8736]
[1748028795574,119.6886,179.55,179.45,162.8736]
[1748028795773,0.03706866,179.52,179.48,0.04205699]
[1748028796069,0.03706866,179.52,179.51,5.5693]
[1748028797471,0.03706866,179.52,179.5,5.5698]
[1748028797968,5.60636866,179.52,179.5,5.5698]
[1748028798172,5.60636866,179.52,179.48,161.04205699]
[1748028798373,0.03706866,179.52,179.48,161.04205699]
[1748028798768,0.03706866,179.52,179.51,5.5696]
[1748028800472,0.03706866,179.52,179.48,161.04205699]
[1748028800867,0.03706866,179.52,179.48,0.04205699]
[1748028801570,5.5696,179.51,179.49,5.5701]
[1748028801766,0.03706866,179.52,179.48,0.04205699]
[1748028802274,5.60646866,179.52,179.49,5.5702]
[1748028803184,0.03706866,179.52,179.48,0.04205699]
[1748028803375,0.03706866,179.52,179.48,275.16205699]
[1748028803577,114.12,179.58,179.48,275.16205699]
[1748028803876,114.12,179.58,179.56,5.5679]
[1748028804370,114.12,179.58,179.57,5.5677]
[1748028804575,119.6875,179.58,179.56,0.04066319]
[1748028804775,114.12,179.58,179.56,0.04066319]
[1748028805278,5.5677,179.57,179.56,0.04066319]
[1748028810178,114.12,179.58,179.56,0.04066319]
[1748028810376,114.12,179.58,179.56,5.60846319]
[1748028810579,114.12,179.58,179.56,0.04066319]
[1748028810979,0.03667344,179.59,179.56,105.88066319]
[1748028811190,114.1,179.65,179.56,105.88066319]
[1748028811386,5.5657,179.64,179.61,5.5663]
[1748028811584,114.1,179.65,179.56,266.84]
[1748028812085,0.04228154,179.62,179.59,0.03667711]
[1748028813486,5.60868154,179.62,179.59,5.60357711]
[1748028813690,0.04228154,179.62,179.59,0.03667711]
[1748028814086,5.5668,179.6,179.59,0.03667711]
[1748028814385,0.04228154,179.62,179.59,0.03667711]
[1748028816987,0.04228154,179.62,179.61,5.5665]
[1748028818085,0.04228154,179.62,179.6,5.5667]
[1748028818488,0.04228154,179.62,179.59,0.03667711]
[1748028818988,5.60848154,179.62,179.59,0.03667711]
[1748028819989,5.60848154,179.62,179.59,5.60377711]
[1748028820392,5.5665,179.61,179.59,5.60377711]
[1748028820585,5.5665,179.61,179.59,0.03667711]
[1748028821191,5.60858154,179.62,179.59,5.60377711]
[1748028823694,0.04228154,179.62,179.61,5.5665]
[1748028823992,0.04228154,179.62,179.59,0.03667711]
[1748028824292,0.04228154,179.62,179.61,5.5665]
[1748028826406,114.04,179.69,179.65,5.5652]
[1748028826596,114.04,179.69,179.59,161.0]
[1748028826802,5.5648,179.67,179.59,161.0]
[1748028827098,5.5648,179.67,179.64,5.5653]
[1748028827299,5.5648,179.67,179.64,5.60580643]
[1748028827997,5.565,179.66,179.64,0.04050643]
[1748028828915,5.5647,179.67,179.64,5.60600643]
[1748028829816,5.565,179.66,179.64,0.04050643]
[1748028830314,5.5648,179.67,179.64,5.60580643]
[1748028830704,114.04,179.69,179.64,0.04050643]
[1748028830910,5.5643,179.68,179.65,5.5651]
[1748028831306,114.04,179.69,179.65,5.5651]
[1748028831510,5.5645,179.68,179.65,5.5651]
[1748028832816,5.5647,179.67,179.65,5.5651]
[1748028833615,5.565,179.66,179.64,5.60600643]
[1748028833818,5.565,179.66,179.64,0.04050643]
[1748028835722,5.565,179.66,179.64,5.60600643]
[1748028836323,5.5647,179.67,179.64,5.60600643]
[1748028836622,114.04,179.69,179.64,0.04050643]
[1748028836832,5.5633,179.72,179.64,161.04050643]
[1748028837021,114.0,179.75,179.65,119.9468]
[1748028837219,114.0,179.75,179.68,0.03549014]
[1748028837420,119.5622,179.75,179.68,266.81549014]
[1748028837618,119.5622,179.75,179.73,5.5628]
[1748028838117,119.5622,179.75,179.72,5.60095421]
[1748028838621,5.5626,179.74,179.72,0.03795421]
[1748028839326,119.5623,179.75,179.72,0.03795421]
[1748028839726,119.5623,179.75,179.72,5.60075421]
[1748028840033,5.5625,179.74,179.72,5.60075421]
[1748028840324,114.0,179.75,179.72,5.60105421]
[1748028840525,5.5626,179.74,179.72,0.03795421]
[1748028840830,114.0,179.75,179.72,0.03795421]
[1748028841326,5.5628,179.73,179.72,0.03795421]
[1748028841729,114.0,179.75,179.72,0.03795421]
[1748028842425,5.5616,179.77,179.72,0.03795421]
[1748028843325,5.5616,179.77,179.74,5.5624]
[1748028843723,5.5619,179.76,179.74,5.5624]
[1748028843924,113.94,179.79,179.72,0.03795421]
[1748028844316,5.5614,179.78,179.72,0.03795421]
[1748028844526,113.94,179.79,179.72,0.03795421]
[1748028844728,113.94,179.79,179.72,161.03795421]
[1748028844923,400.84,179.82,179.77,5.5613]
[1748028845120,113.94,179.86,179.78,0.03887162]
[1748028845324,113.94,179.86,179.8,0.04024379]
[1748028845725,113.94,179.86,179.8,5.60074379]
[1748028845926,113.94,179.86,179.8,0.04024379]
[1748028846126,5.5595,179.84,179.81,5.5601]
[1748028846830,113.94,179.86,179.8,0.04024379]
[1748028847832,5.5603,179.81,179.8,0.04024379]
[1748028848130,113.94,179.86,179.8,0.04024379]
[1748028848430,5.5595,179.84,179.8,0.04024379]
[1748028848636,113.94,179.86,179.8,0.04024379]
[1748028849628,113.94,179.86,179.82,5.5599]
[1748028849830,113.94,179.86,179.8,0.04024379]
[1748028850135,113.9,179.9,179.81,105.72]
[1748028850431,113.9,179.9,179.84,0.03997959]
[1748028850639,5.559,179.86,179.84,0.03997959]
[1748028850932,113.9,179.9,179.84,0.03997959]
[1748028851233,5.5587,179.87,179.84,0.03997959]
[1748028852333,5.5582,179.88,179.84,5.59907959]
[1748028852530,113.9,179.9,179.84,0.03997959]
[1748028853126,113.9,179.9,179.84,5.59917959]
[1748028853837,5.5584,179.88,179.84,5.59917959]
[1748028854136,113.9,179.9,179.85,5.559]
[1748028854933,5.5584,179.88,179.85,5.559]
[1748028855126,5.5584,179.88,179.84,5.59927959]
[1748028855323,5.5584,179.88,179.84,0.03997959]
[1748028855523,5.5584,179.88,179.85,5.5588]
[1748028855738,5.5581,179.89,179.85,5.5588]
[1748028855935,113.9,179.9,179.85,5.5588]
[1748028856233,113.9,179.9,179.84,5.59927959]
[1748028856234,5.5585,179.87,179.84,5.59927959]
[1748028858339,5.5582,179.88,179.85,5.559]
[1748028859639,5.5585,179.87,179.84,5.59927959]
[1748028860637,5.5583,179.88,179.85,5.559]
[1748028860832,113.9,179.9,179.84,0.03997959]
[1748028861236,5.5582,179.88,179.85,5.559]
[1748028861538,113.9,179.9,179.84,0.03997959]
[1748028861838,113.9,179.9,179.86,5.5587]
[1748028861839,5.558,179.89,179.86,5.5587]
[1748028862030,1.8933,179.91,179.86,5.5587]
[1748028862232,1.8933,179.91,179.84,0.03997959]
[1748028862639,5.5579,179.89,179.85,5.5589]
[1748028863137,5.5579,179.89,179.84,0.03997959]
[1748028863334,5.5579,179.89,179.86,5.5587]
[1748028864943,5.5582,179.88,179.85,5.559]
[1748028865840,5.558,179.89,179.86,5.5586]
[1748028866043,115.7333,179.91,179.84,0.03997959]
[1748028866246,5.8984768,179.86,179.74,1.9528]
[1748028866450,5.5608,179.8,179.77,5.5613]
[1748028866744,115.7893,179.85,179.73,117.5715]
[1748028866938,5.5609,179.8,179.77,5.5615]
[1748028867245,5.60331464,179.8,179.77,0.04003959]
[1748028867943,5.60311464,179.8,179.77,0.04003959]
[1748028868546,5.60311464,179.8,179.77,5.60133959]
[1748028869046,5.5609,179.79,179.77,0.04003959]
[1748028869248,0.04241464,179.8,179.77,0.04003959]
[1748028869747,5.5609,179.79,179.77,5.60153959]
[1748028869953,0.04241464,179.8,179.77,5.60153959]
[1748028870246,5.60321464,179.8,179.77,5.60153959]
[1748028870742,0.04241464,179.8,179.77,5.60153959]
[1748028870949,0.04241464,179.8,179.77,0.04003959]
[1748028871949,5.5609,179.79,179.77,0.04003959]
[1748028873034,0.04241464,179.8,179.77,0.04003959]
[1748028873240,0.04241464,179.8,179.79,5.5609]
[1748028877752,1.464e-05,179.8,179.79,5.5609]
[1748028889251,113.82,179.89,179.85,5.5588]
[1748028889445,113.82,179.89,179.81,113.82]
[1748028889647,113.82,179.89,179.83,5.5596]
[1748028889855,113.82,179.89,179.81,113.82]
[1748028890053,113.82,179.89,179.83,0.03577551]
[1748028890260,5.5605,179.81,179.78,5.5611]
[1748028890453,113.8,179.85,179.77,113.8]
[1748028890756,5.5605,179.81,179.77,119.3614]
[1748028890961,5.5605,179.81,179.77,113.8]
[1748028891260,5.59607732,179.81,179.77,113.83524772]
[1748028891452,5.59607732,179.81,179.78,5.5612]
[1748028891651,5.5607,179.8,179.77,113.83524772]
[1748028892664,5.5607,179.8,179.77,0.03524772]
[1748028893363,5.5607,179.8,179.77,5.59664772]
[1748028894763,5.59597732,179.81,179.78,5.5612]
[1748028895461,0.03557732,179.81,179.79,5.5609]
[1748028895659,0.03557732,179.81,179.77,0.03524772]
[1748028896065,0.03557732,179.81,179.79,5.5607]
[1748028896465,0.03557732,179.81,179.77,0.03524772]
[1748028896764,5.59597732,179.81,179.78,5.5612]
[1748028897967,5.5607,179.8,179.78,5.5612]
[1748028898766,5.59607732,179.81,179.78,5.5612]
[1748028898974,0.03557732,179.81,179.79,5.5609]
[1748028899768,0.03557732,179.81,179.8,5.5606]
[1748028906175,0.03557732,179.81,179.77,274.85524772]
[1748028906376,5.59617732,179.81,179.77,380.53524772]
[1748028906568,5.59617732,179.81,179.77,274.85524772]
[1748028906876,5.5611,179.79,179.77,0.03524772]
[1748028907075,0.03557732,179.81,179.77,0.03524772]
[1748028907576,0.03557732,179.81,179.8,5.5606]
[1748028907775,0.03557732,179.81,179.77,0.03524772]
[1748028907981,5.5612,179.78,179.77,0.03524772]
[1748028908277,113.76,179.8,179.73,5.19441454]
[1748028908573,113.76,179.8,179.74,5.5622]
[1748028908764,113.76,179.8,179.73,5.19441454]
[1748028909076,5.5618,179.77,179.75,0.03690456]
[1748028909575,0.03918863,179.78,179.75,0.03690456]
[1748028909777,0.03918863,179.78,179.73,5.19441454]
[1748028910170,5.5625,179.74,179.73,5.19441454]
[1748028910479,5.5625,179.74,179.71,6.92588606]
[1748028910480,113.76,179.74,179.71,6.92588606]
[1748028910773,113.76,179.74,179.71,0.03758371]
[1748028911075,113.79756761,179.74,179.71,0.03758371]
[1748028911373,5.5631,179.72,179.71,0.03758371]
[1748028911874,5.5644,179.68,179.65,5.5652]
[1748028912077,113.76,179.74,179.65,5.5652]
[1748028912281,113.76,179.74,179.63,110.86188486]
[1748028912578,113.78,179.73,179.7,5.5635]
[1748028912979,113.81571686,179.73,179.7,5.6045791]
[1748028913183,113.81571686,179.73,179.7,0.0410791]
[1748028914282,113.83571686,179.73,179.7,0.0410791]
[1748028914480,119.39861686,179.73,179.7,0.0410791]
[1748028914681,113.83571686,179.73,179.7,0.0410791]
[1748028915685,5.5634,179.71,179.7,0.0410791]
[1748028916081,113.83571686,179.73,179.62,4.0107]
[1748028916285,113.8,179.73,179.62,4.0107]
[1748028916585,5.5639,179.7,179.62,4.0107]
[1748028916784,113.8,179.73,179.62,4.0107]
[1748028917177,5.60575724,179.69,179.66,0.0359061]
[1748028917378,0.04155724,179.69,179.66,0.0359061]
[1748028917684,5.5644,179.68,179.66,0.0359061]
[1748028918983,5.5646,179.67,179.66,0.0359061]
[1748028919178,113.86155724,179.69,179.66,0.0359061]
[1748028919486,5.5645,179.68,179.66,0.0359061]
[1748028919787,113.86155724,179.69,179.66,0.0359061]
[1748028920587,5.5645,179.68,179.66,0.0359061]
[1748028920785,113.86155724,179.69,179.66,0.0359061]
[1748028921188,5.5643,179.68,179.66,0.0359061]
[1748028921392,113.86155724,179.69,179.66,0.0359061]
[1748028922282,5.5645,179.68,179.66,0.0359061]
[1748028922990,113.86155724,179.69,179.66,0.0359061]
[1748028923490,113.86155724,179.69,179.6,107.6454]
[1748028923491,119.76003404,179.69,179.53,5.8984768]
[1748028923788,119.76003404,179.69,179.55,113.84]
[1748028923789,119.7184768,179.69,179.55,113.84]
[1748028924089,3.9154,179.68,179.59,5.567]
[1748028924390,5.5662,179.62,179.59,5.567]
[1748028924588,5.60500067,179.62,179.59,5.60478728]
[1748028925890,5.5666,179.61,179.59,0.03778728]
[1748028926093,0.03880067,179.62,179.59,0.03778728]
[1748028926590,5.5667,179.61,179.59,0.03778728]
[1748028928195,5.60510067,179.62,179.59,0.03778728]
[1748028928398,0.03880067,179.62,179.59,0.03778728]
[1748028928891,0.03880067,179.62,179.61,5.5665]
[1748028929493,0.03880067,179.62,179.6,5.5666]
[1748028929694,0.03880067,179.62,179.59,0.03778728]
[1748028930593,5.60510067,179.62,179.59,5.60488728]
[1748028930788,0.03880067,179.62,179.59,0.03778728]
[1748028931094,5.5668,179.6,179.59,0.03778728]
[1748028931395,0.03880067,179.62,179.59,0.03778728]
[1748028931789,5.60520067,179.62,179.59,5.60478728]
[1748028932095,0.03880067,179.62,179.59,0.03778728]
[1748028932796,5.5668,179.6,179.59,0.03778728]
[1748028934998,0.03880067,179.62,179.52,1.9385]
[1748028934999,5.5682,179.56,179.52,1.9385]
[1748028935198,113.84,179.59,179.52,1.9385]
[1748028935395,113.84,179.59,179.52,7.5077]
[1748028935590,5.5682,179.56,179.52,1.9385]
[1748028936099,5.60654746,179.56,179.53,5.569]
[1748028936598,0.03834746,179.56,179.52,1.97653679]
[1748028936999,0.03834746,179.56,179.53,5.5689]
[1748028937400,0.03834746,179.56,179.52,1.97653679]
[1748028938002,0.03834746,179.56,179.54,5.5684]
[1748028938300,0.03834746,179.56,179.52,1.97653679]
[1748028938600,0.03834746,179.56,179.54,5.5684]
[1748028938803,0.03834746,179.56,179.52,1.97653679]
[1748028939397,0.03834746,179.56,179.54,5.5685]
[1748028939599,0.03834746,179.56,179.52,1.97653679]
[1748028940705,3.9154,179.68,179.52,1.97653679]
[1748028940706,113.86,179.62,179.53,2.0062]